bitfinex-derivatives/quotes_SOLF0:USTF0_20250904
["timestamp","ask_amount","ask_price","bid_price","bid_amount"]
[1757007572700,1.92473182,204.87,204.83,4.58120634]
[1757007572901,9.82473182,204.87,204.81,7.78]
[1757007574904,7.9,204.82,204.8,0.03109007]
[1757007575105,9.82473182,204.81,204.8,0.03109007]
[1757007576504,10.30473182,204.81,204.8,0.03109007]
[1757007576707,10.30473182,204.81,204.73,7.78]
[1757007576901,9.82473182,204.76,204.74,4.58113361]
[1757007577102,9.82473182,204.76,204.75,4.58113361]
[1757007577703,9.82473182,204.76,204.73,7.78]
[1757007577898,7.9,204.76,204.74,4.58155329]
[1757007578100,1.92473182,204.75,204.7,7.78]
[1757007578302,9.82473182,204.75,204.72,7.78]
[1757007578501,9.82473182,204.75,204.73,4.58155329]
[1757007578705,9.82473182,204.75,204.74,4.58155329]
[1757007581501,1.92473182,204.75,204.74,4.58155329]
[1757007581698,0.03265785,204.78,204.74,4.58155329]
[1757007581899,1.92473182,204.75,204.69,1.92473182]
[1757007582100,1.92473182,204.75,204.7,4.56633825]
[1757007582296,1.92473182,204.75,204.72,7.78]
[1757007582499,1.92473182,204.75,204.73,4.56633825]
[1757007582705,1.92473182,204.75,204.74,12.34633825]
[1757007585221,1.92473182,204.77,204.75,7.78]
[1757007586109,9.82473182,204.77,204.75,7.78]
[1757007586310,9.82473182,204.77,204.71,7.78]
[1757007586505,9.82473182,204.77,204.72,4.56627782]
[1757007586712,9.82473182,204.77,204.74,7.78]
[1757007586911,1.92473182,204.77,204.75,4.56627782]
[1757007587113,9.82473182,204.77,204.74,7.78]
[1757007587414,9.82473182,204.77,204.75,4.56627782]
[1757007587716,9.82473182,204.77,204.74,7.78]
[1757007587909,7.44,204.76,204.75,4.56636509]
[1757007588510,7.44,204.76,204.7,7.48]
[1757007588707,1.92473182,204.75,204.71,4.56658931]
[1757007589010,1.92473182,204.75,204.73,7.48]
[1757007589211,1.92473182,204.75,204.74,4.56658931]
[1757007593920,1.92473182,204.75,204.74,12.04658931]
[1757007594312,1.92473182,204.75,204.74,4.56658931]
[1757007597110,9.36473182,204.75,204.74,4.56658931]
[1757007597311,7.44,204.74,204.71,7.48]
[1757007597514,7.44,204.74,204.72,4.58638821]
[1757007597722,7.44,204.74,204.73,4.58638821]
[1757007598917,9.36473182,204.74,204.73,4.58638821]
[1757007599117,7.44,204.74,204.73,4.58638821]
[1757007599323,9.36473182,204.74,204.73,4.58638821]
[1757007600820,1.92473182,204.75,204.74,7.48]
[1757007601221,1.92473182,204.75,204.69,7.48]
[1757007601416,9.36473182,204.75,204.7,4.58530564]
[1757007601618,9.36473182,204.75,204.72,7.48]
[1757007604226,7.44,204.74,204.73,4.58410472]
[1757007604425,7.44,204.74,204.72,7.48]
[1757007604626,1.92473182,204.73,204.72,7.48]
[1757007604826,1.92473182,204.73,204.72,12.06421647]
[1757007605226,1.92473182,204.73,204.72,12.06399638]
[1757007606420,9.36473182,204.73,204.72,4.58399638]
[1757007607223,1.92473182,204.73,204.72,4.58399638]
[1757007608032,1.92473182,204.73,204.72,12.06399638]
[1757007608231,0.03652285,204.76,204.72,4.58399638]
[1757007608426,0.03652285,204.76,204.74,7.48]
[1757007609330,0.03652285,204.76,204.7,7.48]
[1757007609532,0.03652285,204.76,204.71,4.58302365]
[1757007609729,0.03652285,204.76,204.72,4.58302365]
[1757007610027,0.03652285,204.76,204.74,7.48]
[1757007610231,0.03652285,204.76,204.7,7.48]
[1757007610433,0.03652285,204.76,204.72,7.48]
[1757007610632,0.03652285,204.76,204.73,4.5830108]
[1757007610829,0.03652285,204.76,204.75,7.48]
[1757007613238,0.03652285,204.76,204.75,12.06467734]
[1757007622639,0.03652285,204.76,204.75,7.48]
[1757007622841,10.56693975,204.86,204.78,7.37]
[1757007623044,10.56693975,204.86,204.8,7.37]
[1757007624046,7.56,204.85,204.81,7.40622806]
[1757007624647,7.56,204.85,204.82,7.37]
[1757007624848,3.00693975,204.86,204.82,7.37]
[1757007625141,3.00693975,204.86,204.81,0.03622806]
[1757007625142,10.56693975,204.86,204.81,0.03622806]
[1757007625347,7.56,204.85,204.82,7.37]
[1757007626349,7.56,204.85,204.81,0.03622806]
[1757007626846,7.56,204.85,204.82,7.37]
[1757007627245,7.56,204.88,204.82,7.37]
[1757007627446,7.56,204.88,204.81,0.03622806]
[1757007631353,7.56,204.88,204.82,7.37]
[1757007632854,7.56,204.88,204.81,0.03622806]
[1757007636553,7.56,204.88,204.81,7.40622806]
[1757007638453,3.00693975,204.87,204.81,7.40622806]
[1757007639062,7.56,204.86,204.81,7.40622806]
[1757007639259,3.00693975,204.87,204.81,0.03622806]
[1757007639561,7.56,204.86,204.81,0.03622806]
[1757007639761,10.56693975,204.87,204.81,7.40622806]
[1757007645765,7.56,204.87,204.81,7.40622806]
[1757007654272,3.00693975,204.88,204.82,4.57280869]
[1757007654472,7.59,204.87,204.81,7.68622806]
[1757007654671,7.59,204.87,204.82,4.57280869]
[1757007654871,7.59,204.87,204.81,7.68622806]
[1757007655072,7.59,204.87,204.82,4.57202646]
[1757007655267,7.59,204.87,204.84,7.65]
[1757007655766,7.59,204.87,204.81,0.03622806]
[1757007655970,7.59,204.87,204.83,7.65]
[1757007656170,7.59,204.87,204.81,0.03622806]
[1757007656371,7.59,204.87,204.82,4.57413593]
[1757007656564,7.59,204.87,204.84,7.65]
[1757007657172,7.59,204.87,204.81,0.03622806]
[1757007657373,7.59,204.87,204.83,7.65]
[1757007657574,7.59,204.87,204.81,0.03622806]
[1757007657769,7.59,204.87,204.82,4.5743288]
[1757007657965,7.59,204.87,204.83,4.5743288]
[1757007658169,7.59,204.87,204.84,4.57633508]
[1757007658370,7.59,204.87,204.85,7.65]
[1757007659274,10.59693975,204.88,204.82,7.65]
[1757007659465,3.00693975,204.88,204.83,12.22626695]
[1757007659771,3.00693975,204.88,204.83,7.65]
[1757007660372,7.59,204.87,204.83,7.65]
[1757007660568,3.00693975,204.88,204.83,7.65]
[1757007660774,8.43991025,204.89,204.84,4.57618489]
[1757007660963,0.84991025,204.89,204.81,0.03622806]
[1757007661164,7.59,204.88,204.82,12.22520194]
[1757007661368,0.84991025,204.89,204.83,4.57520194]
[1757007661574,7.59,204.88,204.84,4.57520194]
[1757007661775,7.59,204.88,204.82,7.65]
[1757007661971,7.59,204.88,204.83,4.57439648]
[1757007662170,8.43991025,204.89,204.84,4.57439648]
[1757007662372,8.43991025,204.89,204.82,7.65]
[1757007662672,8.43991025,204.89,204.84,7.65]
[1757007662873,8.43991025,204.89,204.82,7.65]
[1757007663073,7.59,204.89,204.84,7.65]
[1757007663273,7.59,204.89,204.82,7.65]
[1757007663475,7.59,204.89,204.84,7.65]
[1757007663677,7.59,204.89,204.82,7.65]
[1757007663973,3.00693975,204.87,204.83,4.57451107]
[1757007664178,7.59,204.82,204.81,0.03622806]
[1757007664877,3.00693975,204.86,204.81,7.68622806]
[1757007665077,7.59,204.85,204.81,0.03622806]
[1757007665378,7.59,204.82,204.81,0.03622806]
[1757007666974,10.59693975,204.82,204.81,0.03622806]
[1757007668284,11.07693975,204.82,204.74,7.65]
[1757007668488,3.00693975,204.79,204.73,7.65]
[1757007669485,0.03203605,204.78,204.71,7.65]
[1757007672082,0.03203605,204.78,204.71,12.045]
[1757007672389,0.03203605,204.78,204.72,1.82591833]
[1757007672691,0.03203605,204.78,204.72,7.65]
[1757007673278,0.03203605,204.78,204.73,4.3946]
[1757007673687,0.03203605,204.78,204.71,11.76533299]
[1757007673888,0.03203605,204.78,204.73,7.65]
[1757007674694,0.03203605,204.78,204.72,7.65]
[1757007674892,0.03203605,204.78,204.73,4.3945]
[1757007675185,0.03203605,204.78,204.74,7.65]
[1757007675384,0.03203605,204.78,204.73,4.3945]
[1757007675586,0.03203605,204.78,204.74,13.96841359]
[1757007675893,0.03203605,204.78,204.75,7.65]
[1757007676091,0.03203605,204.78,204.74,4.3943]
[1757007676487,0.03203605,204.78,204.75,7.65]
[1757007676886,0.03203605,204.78,204.74,4.3943]
[1757007677190,0.03203605,204.78,204.75,7.65]
[1757007677584,0.03203605,204.78,204.74,4.3943]
[1757007678187,0.03203605,204.78,204.75,7.37]
[1757007678591,0.03203605,204.78,204.74,4.3943]
[1757007678786,0.03203605,204.78,204.75,7.37]
[1757007679793,0.03203605,204.78,204.74,4.3943]
[1757007680184,0.03203605,204.78,204.75,7.37]
[1757007680591,0.03203605,204.78,204.74,4.3943]
[1757007680790,0.03203605,204.78,204.75,7.37]
[1757007680991,0.03203605,204.78,204.74,4.3943]
[1757007681391,0.03203605,204.78,204.75,7.37]
[1757007682594,0.03203605,204.78,204.74,4.3943]
[1757007682896,0.03203605,204.78,204.75,7.37]
[1757007683491,0.03203605,204.78,204.74,4.3943]
[1757007683795,0.03203605,204.78,204.75,7.37]
[1757007683998,0.03203605,204.78,204.74,4.3943]
[1757007684300,0.03203605,204.78,204.75,7.37]
[1757007684494,0.03203605,204.78,204.74,4.3943]
[1757007684998,0.03203605,204.78,204.75,7.37]
[1757007685200,0.03203605,204.78,204.74,4.43117014]
[1757007685400,0.03203605,204.78,204.75,4.3942]
[1757007685700,0.03203605,204.78,204.77,9.29411359]
[1757007688698,0.03203605,204.78,204.77,7.37]
[1757007690599,7.33203605,204.78,204.74,0.03687014]
[1757007690794,0.03203605,204.78,204.74,0.03687014]
[1757007692500,0.03203605,204.78,204.75,7.37]
[1757007692896,0.03203605,204.78,204.74,0.03687014]
[1757007693301,0.03203605,204.78,204.75,7.37]
[1757007693603,0.03203605,204.78,204.74,0.03687014]
[1757007693794,0.03203605,204.78,204.75,7.37]
[1757007693999,0.03203605,204.78,204.74,0.03687014]
[1757007694598,0.03203605,204.78,204.75,7.37]
[1757007695000,0.03203605,204.78,204.75,9.29411359]
[1757007695203,0.03203605,204.78,204.77,9.29411359]
[1757007697608,0.03203605,204.78,204.77,7.37]
[1757007697910,0.03203605,204.78,204.77,9.29411359]
[1757007707212,0.03203605,204.78,204.77,7.37]
[1757007707516,0.03203605,204.78,204.77,9.29411359]
[1757007716128,0.03203605,204.78,204.77,13.39048528]
[1757007719229,0.03203605,204.78,204.77,15.21503058]
[1757007720424,0.03203605,204.78,204.77,9.29411359]
[1757007726831,0.03203605,204.78,204.77,7.37]
[1757007727035,7.63203605,204.78,204.75,11.59637169]
[1757007727231,7.63203605,204.78,204.75,9.42411359]
[1757007727529,0.03203605,204.78,204.75,9.42411359]
[1757007727734,7.6,204.77,204.75,9.42411359]
[1757007728132,7.6,204.77,204.74,0.03687014]
[1757007728329,7.6,204.77,204.74,7.53687014]
[1757007728534,7.6,204.77,204.75,7.5]
[1757007730639,0.03203605,204.78,204.74,7.53687014]
[1757007731039,7.6,204.77,204.74,7.53687014]
[1757007731430,0.03203605,204.78,204.74,7.53687014]
[1757007731631,7.6,204.77,204.74,0.03687014]
[1757007731836,1.95614964,204.78,204.74,0.03687014]
[1757007732137,7.6,204.77,204.74,0.03687014]
[1757007732641,1.92411359,204.76,204.74,0.03687014]
[1757007732845,7.6,204.75,204.74,0.03687014]
[1757007735351,8.08,204.75,204.74,0.03687014]
[1757007735546,11.08833362,204.75,204.74,0.03687014]
[1757007746653,8.08,204.75,204.74,0.03687014]
[1757007750056,7.6,204.75,204.74,0.03687014]
[1757007750452,8.08,204.75,204.66,7.49]
[1757007750658,3.00833362,204.73,204.66,7.49]
[1757007750957,7.88,204.72,204.66,7.49]
[1757007751658,7.91389484,204.71,204.63,7.49]
[1757007757256,7.91389484,204.71,204.65,7.49]
[1757007759767,7.91389484,204.71,204.62,317.58833362]
[1757007759768,7.88,204.7,204.62,7.49]
[1757007764869,0.03389484,204.71,204.62,7.49]
[1757007765071,0.03389484,204.71,204.64,7.49]
[1757007768367,0.03389484,204.71,204.67,7.96]
[1757007768566,7.41389484,204.71,204.67,7.96]
[1757007768761,0.03389484,204.71,204.67,7.96]
[1757007768967,7.38,204.7,204.67,7.96]
[1757007773076,7.38,204.7,204.64,4.09637169]
[1757007773274,7.38,204.7,204.64,12.05637169]
[1757007773474,7.38,204.7,204.64,4.09637169]
[1757007773676,0.03389484,204.71,204.65,7.96]
[1757007776271,0.03389484,204.71,204.65,12.05637169]
[1757007776473,7.38,204.7,204.65,12.05637169]
[1757007776675,0.03389484,204.71,204.65,12.05637169]
[1757007776969,7.38,204.7,204.65,7.96]
[1757007777382,7.41389484,204.71,204.65,7.96]
[1757007778282,7.41389484,204.71,204.65,12.05637169]
[1757007779276,7.38,204.7,204.65,7.96]
[1757007779677,10.38833362,204.7,204.62,12.05637169]
[1757007779981,7.38,204.69,204.62,12.05637169]
[1757007780278,0.03664109,204.68,204.63,1.82920618]
[1757007780473,0.03664109,204.68,204.62,12.05637169]
[1757007780474,7.41664109,204.68,204.62,12.05637169]
[1757007780776,7.38,204.67,204.62,4.09637169]
[1757007780975,7.38,204.67,204.63,7.96]
[1757007781574,7.38,204.67,204.62,4.09637169]
[1757007781978,7.38,204.67,204.63,7.96]
[1757007782174,7.38,204.67,204.62,4.09637169]
[1757007782683,0.03664109,204.68,204.63,7.96]
[1757007783282,7.38,204.67,204.63,7.96]
[1757007783482,0.03664109,204.68,204.63,7.96]
[1757007783880,7.38,204.67,204.62,7.96]
[1757007784074,7.38,204.67,204.61,4.09637169]
[1757007784279,0.03664109,204.68,204.63,7.96]
[1757007784482,7.38,204.67,204.61,4.09637169]
[1757007784684,7.41664109,204.68,204.62,1.82824964]
[1757007784879,7.41664109,204.68,204.61,12.05637169]
[1757007785079,7.41664109,204.68,204.62,1.82824965]
[1757007785281,7.41664109,204.68,204.61,12.05637169]
[1757007785482,7.41664109,204.68,204.62,1.82812781]
[1757007785781,7.41664109,204.68,204.61,12.05637169]
[1757007785975,7.41664109,204.68,204.62,1.82812346]
[1757007786180,7.41664109,204.68,204.61,12.05637169]
[1757007786380,7.41664109,204.68,204.62,1.82798632]
[1757007786680,7.41664109,204.68,204.62,7.96]
[1757007786882,0.03664109,204.68,204.62,7.96]
[1757007792589,10.38833362,204.67,204.61,4.09637169]
[1757007792787,7.38,204.67,204.58,12.05637169]
[1757007792980,7.38,204.67,204.59,7.96]
[1757007793182,7.38,204.67,204.61,7.96]
[1757007797485,1.92662221,204.66,204.6,7.96]
[1757007799393,1.9632633,204.68,204.62,7.41]
[1757007799688,0.03664109,204.68,204.63,1.92662221]
[1757007799888,0.03664109,204.68,204.64,7.41]
[1757007800390,0.03664109,204.68,204.63,1.92662221]
[1757007800786,0.03664109,204.68,204.64,7.41]
[1757007801187,0.03664109,204.68,204.63,1.92662221]
[1757007801799,0.03664109,204.68,204.64,7.41]
[1757007801996,0.03664109,204.68,204.63,1.92662221]
[1757007802196,0.03664109,204.68,204.64,7.41]
[1757007802493,0.03664109,204.68,204.63,1.92662221]
[1757007802689,0.03664109,204.68,204.64,7.41]
[1757007803098,0.03664109,204.68,204.63,1.92662221]
[1757007803286,0.03664109,204.68,204.64,7.41]
[1757007803798,0.03664109,204.68,204.63,1.92662221]
[1757007803988,0.03664109,204.68,204.64,7.41]
[1757007804188,0.03664109,204.68,204.63,1.92662221]
[1757007804592,0.03664109,204.68,204.64,7.41]
[1757007805495,0.03664109,204.68,204.63,1.92662221]
[1757007805698,0.03664109,204.68,204.64,7.41]
[1757007805991,0.03664109,204.68,204.63,1.92662221]
[1757007806596,0.03664109,204.68,204.64,7.41]
[1757007806897,7.40664109,204.68,204.63,1.92662221]
[1757007807098,7.40664109,204.68,204.64,7.41]
[1757007807902,7.40664109,204.68,204.63,1.92662221]
[1757007808102,7.40664109,204.68,204.64,7.41]
[1757007808302,7.40664109,204.68,204.63,1.92662221]
[1757007808602,7.40664109,204.68,204.64,7.41]
[1757007809903,7.40664109,204.68,204.63,1.92662221]
[1757007810103,7.40664109,204.68,204.64,7.41]
[1757007810303,7.37,204.67,204.64,7.41]
[1757007810599,7.37,204.67,204.63,1.92662221]
[1757007810804,7.37,204.67,204.64,7.41]
[1757007810998,7.37,204.67,204.63,1.92662221]
[1757007811296,7.37,204.67,204.64,7.41]
[1757007811502,0.03664109,204.68,204.63,1.92662221]
[1757007811899,0.03664109,204.68,204.64,7.41]
[1757007812202,0.03664109,204.68,204.63,1.92662221]
[1757007813003,0.03664109,204.68,204.64,7.41]
[1757007813198,0.03664109,204.68,204.63,1.92662221]
[1757007813801,0.03664109,204.68,204.64,7.41]
[1757007814006,0.03664109,204.68,204.65,1.92662221]
[1757007814204,0.03664109,204.68,204.66,7.41]
[1757007814704,0.03664109,204.68,204.65,1.92662221]
[1757007814903,0.03664109,204.68,204.66,7.41]
[1757007815501,0.03664109,204.68,204.65,1.92662221]
[1757007815695,0.03664109,204.68,204.66,7.41]
[1757007815904,0.03664109,204.68,204.65,1.92662221]
[1757007816104,0.03664109,204.68,204.66,7.41]
[1757007816604,0.03664109,204.68,204.65,1.92662221]
[1757007817005,7.37,204.67,204.64,7.41]
[1757007817595,7.37,204.67,204.61,1.92662221]
[1757007818705,1.92662221,204.66,204.6,9.33662221]
[1757007819899,7.37,204.63,204.6,7.41]
[1757007820805,1.95862626,204.64,204.6,7.41]
[1757007821002,7.37,204.61,204.57,7.41]
[1757007821599,1.92662221,204.58,204.53,4.09637169]
[1757007821810,7.37,204.57,204.53,7.41]
[1757007822208,0.03345391,204.57,204.53,7.41]
[1757007822509,7.37,204.56,204.53,7.41]
[1757007822709,7.37,204.56,204.5,6.0229939]
[1757007822710,7.37,204.56,204.5,1.92662221]
[1757007822907,7.37,204.56,204.51,7.41]
[1757007823307,7.40345391,204.57,204.5,7.41]
[1757007824209,1.92662221,204.56,204.5,7.41]
[1757007824710,7.40345391,204.57,204.5,7.41]
[1757007825511,7.40345391,204.57,204.51,1.83321266]
[1757007825711,7.40345391,204.57,204.5,7.41]
[1757007825911,7.40345391,204.57,204.51,1.83321266]
[1757007826112,7.40345391,204.57,204.5,11.8102]
[1757007830410,0.03345391,204.57,204.5,4.4002]
[1757007830715,0.03345391,204.57,204.54,1.92662221]
[1757007831117,0.03345391,204.57,204.55,7.63]
[1757007831615,0.03345391,204.57,204.54,1.92662221]
[1757007832311,0.03345391,204.57,204.44,132.37482862]
[1757007832312,0.03345391,204.57,204.56,9.55662221]
[1757007832616,9.86662221,204.63,204.56,9.55662221]
[1757007832918,0.03252001,204.59,204.56,1.92662221]
[1757007833218,0.03252001,204.59,204.57,7.63]
[1757007833817,0.03252001,204.59,204.56,1.92662221]
[1757007834216,0.03252001,204.59,204.57,7.63]
[1757007837426,7.97252001,204.59,204.55,7.63]
[1757007838621,0.03252001,204.59,204.55,7.63]
[1757007838822,7.94,204.58,204.55,7.63]
[1757007839123,0.03252001,204.59,204.54,1.92662221]
[1757007839329,7.97252001,204.59,204.54,1.92662221]
[1757007839621,7.97252001,204.59,204.55,7.63]
[1757007839824,7.97252001,204.59,204.54,1.92662221]
[1757007840023,7.97252001,204.59,204.55,7.63]
[1757007840623,7.94,204.58,204.55,7.63]
[1757007841019,1.95914222,204.59,204.55,7.63]
[1757007841518,7.94,204.58,204.54,7.63]
[1757007841714,1.95914222,204.59,204.54,7.63]
[1757007842118,7.94,204.58,204.53,1.92662221]
[1757007842318,7.94,204.58,204.54,7.63]
[1757007843618,1.95914222,204.59,204.54,7.63]
[1757007844025,7.94,204.58,204.54,7.63]
[1757007844328,7.94,204.58,204.52,6.32632221]
[1757007844523,0.03252001,204.59,204.56,1.92662221]
[1757007844722,0.03252001,204.59,204.58,9.55662221]
[1757007844922,1.92662221,204.65,204.58,9.55662221]
[1757007845117,0.03349418,204.61,204.59,7.63]
[1757007845723,7.97349418,204.61,204.59,7.63]
[1757007846123,0.03349418,204.61,204.59,7.63]
[1757007848728,7.97349418,204.61,204.57,7.63]
[1757007850430,7.97349418,204.61,204.56,1.92662221]
[1757007850729,7.97349418,204.61,204.57,7.63]
[1757007851327,7.94,204.57,204.49,4.09637169]
[1757007851527,1.92662221,204.58,204.43,8.23523006]
[1757007851528,1.92662221,204.5,204.44,7.63]
[1757007851831,0.03141129,204.49,204.46,7.63]
[1757007852125,1.92662221,204.48,204.44,7.63]
[1757007852327,1.92662221,204.46,204.44,7.63]
[1757007852528,1.92662221,204.48,204.42,7.63]
[1757007853122,1.92662221,204.46,204.4,7.63]
[1757007853930,1.92662221,204.46,204.4,12.0323]
[1757007854128,0.03188943,204.47,204.4,12.0323]
[1757007854334,1.92662221,204.46,204.41,7.63]
[1757007854528,1.92662221,204.46,204.4,4.4023]
[1757007855129,0.03188943,204.47,204.4,4.4023]
[1757007855329,0.03188943,204.47,204.42,7.63]
[1757007855330,1.95851164,204.47,204.42,7.63]
[1757007855525,1.92662221,204.45,204.41,7.63]
[1757007855833,1.95871483,204.45,204.41,7.63]
[1757007856033,1.92662221,204.43,204.41,7.63]
[1757007856234,1.92662221,204.43,204.37,7.63]
[1757007856924,7.97209262,204.45,204.35,6.33002221]
[1757007856925,1.92662221,204.41,204.35,6.33002221]
[1757007857134,7.97209262,204.45,204.35,6.33002221]
[1757007857335,1.92662221,204.42,204.36,7.63]
[1757007857533,1.95776833,204.42,204.36,7.63]
[1757007858233,0.03114612,204.42,204.36,7.63]
[1757007858432,1.95776833,204.42,204.36,7.63]
[1757007858634,0.03114612,204.42,204.36,7.63]
[1757007859033,1.92662221,204.41,204.36,7.63]
[1757007859229,1.92662221,204.41,204.35,7.95]
[1757007859433,0.03114612,204.42,204.35,7.95]
[1757007863438,7.61,204.41,204.35,7.95]
[1757007864237,7.61,204.41,204.29,7.95]
[1757007864238,10.62780629,204.41,204.29,7.95]
[1757007864733,0.03217723,204.37,204.29,7.95]
[1757007865931,0.03217723,204.37,204.28,7.95]
[1757007866442,0.03217723,204.37,204.29,7.95]
[1757007866642,0.03217723,204.37,204.3,4.4044]
[1757007867143,0.03217723,204.37,204.31,7.95]
[1757007869747,7.61,204.36,204.31,7.95]
[1757007869941,0.03217723,204.37,204.31,7.95]
[1757007869942,7.64217723,204.37,204.31,7.95]
[1757007872241,10.62780629,204.35,204.27,7.95]
[1757007872746,7.61,204.35,204.27,7.95]
[1757007874140,7.61,204.33,204.27,7.95]
[1757007874346,7.61,204.33,204.22,7.95]
[1757007874848,0.03738405,204.3,204.22,7.95]
[1757007875342,0.03738405,204.3,204.22,12.3562]
[1757007875542,0.03738405,204.3,204.22,7.95]
[1757007876245,7.61,204.29,204.22,7.95]
[1757007879745,7.61,204.29,204.2,7.95]
[1757007880147,10.62780629,204.24,204.09,7.95]
[1757007880447,10.62780629,204.24,204.13,7.95]
[1757007880943,0.03584681,204.21,204.15,7.95]
[1757007884655,7.61,204.2,204.15,7.95]
[1757007884856,10.6636531,204.21,204.15,7.95]
[1757007888360,10.6636531,204.21,204.1,7.86]
[1757007889160,3.01780629,204.2,204.1,7.86]
[1757007889355,7.5,204.19,204.1,7.86]
[1757007889964,0.03643608,204.17,204.1,4.4086]
[1757007890263,0.03643608,204.17,204.11,7.86]
[1757007893764,0.03643608,204.17,204.12,4.4083]
[1757007894064,7.5,204.21,204.13,7.86]
[1757007894465,0.03354993,204.17,204.13,7.86]
[1757007894763,0.03354993,204.17,204.12,4.4083]
[1757007894963,0.03354993,204.17,204.13,7.86]
[1757007895164,0.03354993,204.17,204.12,4.4083]
[1757007895358,0.03354993,204.17,204.13,7.86]
[1757007895959,0.03354993,204.17,204.12,4.4083]
[1757007896556,0.03354993,204.17,204.13,7.86]
[1757007896957,0.03354993,204.17,204.12,4.4083]
[1757007897763,0.03354993,204.17,204.13,7.86]
[1757007897962,0.03354993,204.17,204.12,4.4083]
[1757007898261,0.03354993,204.17,204.13,7.86]
[1757007898465,0.03354993,204.17,204.12,4.4083]
[1757007898764,0.03354993,204.17,204.13,7.86]
[1757007898956,0.03354993,204.17,204.12,4.4083]
[1757007899366,0.03354993,204.17,204.13,7.86]
[1757007899561,0.03354993,204.17,204.12,4.4083]
[1757007899762,0.03354993,204.17,204.13,7.86]
[1757007900158,0.03354993,204.17,204.13,12.2681]
[1757007900367,0.03354993,204.17,204.13,7.86]
[1757007900665,0.03354993,204.17,204.1,7.86]
[1757007901066,7.5,204.19,204.1,7.86]
[1757007901265,0.03141163,204.16,204.1,7.86]
[1757007901466,0.03141163,204.16,204.11,7.86]
[1757007902058,0.03141163,204.16,204.08,4.4092]
[1757007902268,0.03141163,204.16,204.09,7.86]
[1757007904558,7.5,204.15,204.09,7.86]
[1757007906270,10.51780629,204.15,204.09,7.86]
[1757007907366,3.01780629,204.12,204.05,7.86]
[1757007907562,7.5,204.14,204.05,7.86]
[1757007908068,0.03235072,204.12,204.05,7.86]
[1757007908268,0.03235072,204.12,204.1,3.01780629]
[1757007908469,7.5,204.17,204.1,3.01780629]
[1757007908470,7.5,204.17,204.11,7.86]
[1757007908670,0.03681628,204.13,204.11,7.86]
[1757007908965,0.03681628,204.13,204.1,7.42650629]
[1757007909267,0.03681628,204.13,204.1,4.4087]
[1757007909475,0.03681628,204.13,204.05,7.86]
[1757007910269,0.03681628,204.13,204.05,12.2698]
[1757007910774,0.03681628,204.13,204.05,4.4098]
[1757007911069,3.05462257,204.13,204.06,7.86]
[1757007911270,7.5,204.12,204.06,7.86]
[1757007911571,7.5,204.1,204.06,7.86]
[1757007911968,3.01780629,204.11,204.04,7.86]
[1757007912164,7.53681628,204.13,204.04,7.86]
[1757007912472,3.01780629,204.17,204.09,7.86]
[1757007912473,10.51780629,204.17,204.09,7.86]
[1757007912670,0.03621731,204.11,204.09,7.86]
[1757007913265,0.03621731,204.11,204.08,4.4091]
[1757007913473,0.03621731,204.11,204.09,7.86]
[1757007913671,0.03621731,204.11,204.07,7.86]
[1757007913977,0.03621731,204.11,204.1,7.86]
[1757007914171,7.5,204.2,204.12,3.01780629]
[1757007914378,7.5,204.2,204.13,7.86]
[1757007915379,0.03495129,204.19,204.14,7.86]
[1757007915681,10.51780629,204.26,204.14,7.86]
[1757007915877,0.03236314,204.19,204.16,7.86]
[1757007916074,7.5,204.3,204.17,7.86]
[1757007916274,7.5,204.3,204.21,7.86]
[1757007917783,7.5,204.3,204.23,0.03150427]
[1757007918377,7.54,204.25,204.14,4.05128232]
[1757007918578,7.54,204.21,204.13,7.47]
[1757007919382,7.54,204.17,204.13,7.47]
[1757007919579,10.55780629,204.18,204.09,7.47]